fUSD/lending_fUSD_20241024
["ID","MTS","AMOUNT","RATE_DAILY","PERIOD"]
[340727815,1729733432568,-118480.14758884,0.00038,2]
[340727816,1729733432579,-1529.44484971,0.00038,2]
[340727817,1729733432590,-175034.60000004,0.00038,2]
[340727818,1729733432609,-672.50464293,0.00038,2]
[340727819,1729733432621,-834.06811505,0.00038,2]
[340727903,1729733438816,-399.2484,0.000379,2]
[340727905,1729733438826,-76193.0064025,0.00038,2]
[340727907,1729733440279,-402.150428,0.000379,2]
[340727909,1729733440293,-31.002972,0.000379,2]
[340727910,1729733440305,-1304.637089,0.00038,2]
[340727911,1729733440403,-6674.81272611,0.00038,2]
[340727912,1729733440414,-4457.76043486,0.00038,2]
[340727913,1729733440544,-57717.72420129,0.00038,2]
[340727914,1729733440556,-77279.52361649,0.00038,2]
[340727915,1729733440685,-556.56739436,0.00038,2]
[340727918,1729733440698,-512.24886207,0.00038,2]
[340728160,1729733443390,-692.47638557,0.00038,2]
[340728405,1729733446420,-264.88799688,0.00038,2]
[340728408,1729733446433,-18174.74255351,0.00038,2]
[340728425,1729733446597,-3256.10535246,0.00038,2]
[340728595,1729733632932,250.0,0.0001,2]
[340728598,1729734380287,-151.9293834,0.00015315,2]
[340728599,1729734380309,-165.22,0.00015342,2]
[340728600,1729734380330,-156.64,0.00015342,2]
[340728601,1729734392617,216.5,0.00024,60]
[340728602,1729734453267,-170.97,0.0002906,2]
[340728603,1729734453287,-160.56,0.00029159,30]
[340728604,1729734453308,-150.0,0.00034548,10]
[340728605,1729734453329,-271.24,0.0003482,2]
[340728606,1729734453350,-162.49,0.0003621,120]
[340728607,1729734453370,-250.0,0.00036251,120]
[340728608,1729734453389,-163.61,0.00036252,2]
[340728609,1729734453409,-177.09636054,0.00036288,2]
[340728610,1729734601564,300.0,0.00019725,2]
[340728622,1729734632578,-420.0,0.00021484,2]
[340728623,1729734632588,-362.0,0.00023401,2]
[340728624,1729734632599,-467.0,0.000318,2]
[340728625,1729734632609,-2357.41,0.00036158,2]
[340728626,1729734632620,-2468.59,0.00036203,2]
[340728627,1729734632631,-700.0,0.00036203,2]
[340728628,1729734632644,-663.698535,0.00036203,2]
[340728629,1729734632656,-2251.491465,0.00036203,2]
[340728630,1729734632665,-339.31363946,0.00036288,2]
[340728631,1729734632674,-200.0,0.00036307,2]
[340728632,1729734632683,-175.68243554,0.00036361,2]
[340728633,1729734632694,-24.31756446,0.00036361,2]
[340728634,1729734632703,-155.39,0.00036368,2]
[340728635,1729734632712,-232.02,0.00036368,2]
[340728636,1729734632721,-159.01,0.00036368,120]
[340728637,1729734632730,-527.36368209,0.00036392,2]
[340728638,1729734632741,-688.39999162,0.00036392,2]
[340728639,1729734632752,-2194.55656055,0.00036392,2]
[340728640,1729734632763,-450.44936041,0.00036392,2]
[340728641,1729734632792,-123.10040533,0.00036392,2]
[340728642,1729734632801,-250.0,0.00036449,2]
[340728643,1729734632810,-250.0,0.00036454,2]
[340728644,1729734632819,-76.89959467,0.00036454,2]
[340728645,1729734632830,-773.87040533,0.00036454,2]
[340728646,1729734632839,-151.26,0.00036507,120]
[340728647,1729734632848,-162.92,0.00036519,2]
[340728648,1729734632857,-288.47,0.00036519,2]
[340728649,1729734632866,-303.0,0.00036595,2]
[340728650,1729734632875,-170.0,0.00036596,2]
[340728651,1729734632884,-23900.0,0.00036596,2]
[340728652,1729734632893,-168.31,0.00036668,120]
[340728653,1729734632902,-271.24,0.00037084,2]
[340728654,1729734632910,-199.21809156,0.000372,103]
[340728655,1729734632919,-134.9704734,0.0003721,2]
[340728656,1729734632930,-65.0295266,0.0003721,2]
[340728659,1729734632939,-191.29,0.00037761,120]
[340728662,1729734632948,-2500.0,0.0003778,2]
[340728664,1729734632957,-791.4788,0.0003778,2]
[340728666,1729734632966,-3640.0235,0.0003778,2]
[340728668,1729734632975,-1005.4028847,0.00037789,2]
[340728670,1729734632984,-494.78451671,0.0003779,2]
[340728672,1729734632996,-505.21548329,0.0003779,2]
[340728674,1729734633005,-460.81756671,0.0003779,2]
[340728676,1729734633016,-548.83025219,0.0003779,2]
[340728677,1729734633027,-2448.9579811,0.0003779,2]
[340728678,1729734633036,-174.10538182,0.000378,2]
[340728679,1729734633046,-313.2170436,0.000378,2]
[340728680,1729734633055,-220.65267302,0.000378,12]
[340728681,1729734633064,-500.0,0.00037879,15]
[340728682,1729734633074,-500.0,0.00037879,15]
[340728683,1729734633083,-500.0,0.00037879,15]
[340728684,1729734633092,-116.18669621,0.00037879,15]
[340728685,1729734633104,-383.81330379,0.00037879,15]
[340728686,1729734633114,-425.82316807,0.00037879,15]
[340728687,1729734633125,-6.42715411,0.00037879,15]
[340728688,1729734633134,-170.1559585,0.00037879,15]
[340728689,1729734633144,-500.0,0.00037879,15]
[340728690,1729734633155,-500.0,0.00037879,15]
[340728691,1729734633164,-500.0,0.00037879,15]
[340728692,1729734633174,-500.0,0.00037879,15]
[340728693,1729734633183,-500.0,0.00037879,15]
[340728694,1729734633192,-502.927566,0.00037879,15]
[340728695,1729734633201,-2778.24441209,0.0003788,7]
[340728696,1729734633212,-278.60878409,0.0003788,7]
[340728697,1729734633223,-541.65536624,0.0003788,7]
[340728698,1729734633238,-592.36206145,0.0003788,7]
[340728699,1729734633250,-1963.7448324,0.0003788,7]
[340728700,1729734633261,-2218.35862201,0.0003788,7]
[340728701,1729734633273,-45063.46960216,0.0003788,7]
[340728702,1729734633284,-2106.09064572,0.0003788,7]
[340728703,1729734633295,-3504.07490294,0.0003788,7]
[340728704,1729734633306,-6178.12542846,0.0003788,7]
[340728705,1729734633318,-2301.70685188,0.0003788,7]
[340728706,1729734633330,-85764.72573456,0.0003788,7]
[340728707,1729734633340,-228.52404071,0.0003788,2]
[340728708,1729734633349,-164.12976073,0.00037889,120]
[340728709,1729734633358,-174.81874702,0.00037889,15]
[340728717,1729734638591,-887.16,0.0003787,10]
[340728719,1729734638601,-325.18125298,0.00037889,15]
[340728721,1729734638611,-205.77757782,0.00037889,15]
[340728722,1729734638621,-7299.57939256,0.0003789,7]
[340728723,1729734638631,-4424.989535,0.0003789,2]
[340728724,1729734638642,-3236.01532306,0.0003789,2]
[340728725,1729734638655,-845.302431,0.0003789,2]
[340728726,1729734638666,-117807.72273071,0.0003789,2]
[340728727,1729734638677,-702.74767906,0.0003789,2]
[340728728,1729734638755,-2901.32341379,0.0003789,2]
[340728729,1729734638766,-232583.47044262,0.0003789,2]
[340728730,1729734638779,-264.77000002,0.0003789,2]
[340728731,1729734638790,-1264.43557993,0.0003789,2]
[340728732,1729734638972,-1367.38315579,0.0003789,2]
[340728733,1729734638983,-5555.82829994,0.0003789,2]
[340728734,1729734638994,-178835.97220908,0.0003789,2]
[340728735,1729734639129,-619.20220777,0.000379,2]
[340728736,1729734639138,-9017.5483,0.000379,2]
[340728737,1729734639148,-1000.0,0.000379,2]
[340728738,1729734639157,-550.577,0.000379,50]
[340728739,1729734639166,-176.85037244,0.000379,50]
[340728740,1729734639175,-171.56173922,0.000379,11]
[340728741,1729734639184,-220.65267301,0.000379,12]
[340728742,1729734639194,-21898.7381777,0.0003798,7]
[340728743,1729734639203,-36497.8969628,0.0003799,7]
[340728744,1729734639212,-354807.29454872,0.00038,2]
[340728745,1729734639223,-6348.8759744,0.00038,2]
[340728750,1729734640666,-391.951146,0.00038,2]
[340728751,1729734640677,-2110.66568425,0.00038,2]
[340728752,1729734640688,-4218.43884436,0.00038,2]
[340728753,1729734640700,-3709.78452067,0.00038,2]
[340728754,1729734640710,-6664.80077973,0.00038,2]
[340728755,1729734640722,-22721.88311488,0.00038,2]
[340728756,1729734640734,-969.65529697,0.00038,2]
[340728757,1729734640747,-15000.0,0.00038,2]
[340728758,1729734640758,-2383.28089997,0.00038,2]
[340728759,1729734640840,-3151.20379492,0.00038,2]
[340728760,1729734640851,-2133.1322821,0.00038,2]
[340728761,1729734640862,-1707.20808955,0.00038,2]
[340728762,1729734640873,-794.79791123,0.00038,2]
[340728763,1729734640884,-5059.50192414,0.00038,2]
[340728764,1729734640896,-315.08051835,0.00038,2]
[340728765,1729734640907,-100045.32821675,0.00038,2]
[340728766,1729734640919,-1727.99999992,0.00038,2]
[340728767,1729734640930,-536.41417099,0.00038,2]
[340728768,1729734640943,-1006.18507853,0.00038,2]
[340728769,1729734641014,-998.486475,0.00038,2]
[340728770,1729734641027,-6497.01205417,0.00038,2]
[340728771,1729734641038,-32588.72157954,0.00038,2]
[340728772,1729734641048,-151.0,0.00038,7]
[340728773,1729734641057,-174.567183,0.00038,7]
[340728774,1729734641067,-151.743939,0.00038,7]
[340728775,1729734641077,-201.579657,0.00038,7]
[340728776,1729734641086,-155.39,0.00038186,2]
[340728777,1729734641095,-2630.90666874,0.00039014,2]
[340728791,1729734643943,-10887.32421463,0.00039014,2]
[340728792,1729734643955,-1372.89162855,0.00039014,2]
[340728793,1729734643966,-7300.0,0.00039014,2]
[340728794,1729734643979,-359.73856219,0.00039014,2]
[340728795,1729734643991,-1349.13892589,0.00039014,2]
[340728796,1729734644001,-271.24,0.00039348,2]
[340728797,1729734644013,-155.39,0.00040004,2]
[340728798,1729734644023,-336.87760053,0.00040108,12]
[340728799,1729734644033,-7864.1,0.00040375,7]
[340728800,1729734644042,-313.21704352,0.0004091,2]
[340728801,1729734644053,-186.0359507,0.00041008,2]
[340728802,1729734644063,-1000.0,0.00041083,120]
[340728803,1729734644073,-500.0,0.00041095,30]
[340728804,1729734644084,-217.49658032,0.00041095,30]
[340728805,1729734644093,-156.95,0.00041096,120]
[340728806,1729734644103,-228.52404071,0.00041099,2]
[340728807,1729734644113,-1106.74081934,0.000411,120]
[340728808,1729734644123,-224.071362,0.00041108,14]
[340728809,1729734644132,-151.0,0.00041108,14]
[340728810,1729734644142,-151.0,0.00041108,14]
[340728811,1729734644152,-151.0,0.00041108,14]
[340728812,1729734644162,-151.0,0.00041108,14]
[340728813,1729734644171,-151.0,0.00041108,14]
[340728814,1729734644181,-274.326659,0.00041108,14]
[340728815,1729734644190,-194.89867639,0.00041108,30]
[340728816,1729734644200,-151.0,0.00041109,14]
[340728817,1729734644209,-151.0,0.00041109,14]
[340728818,1729734644218,-151.0,0.00041109,14]
[340728819,1729734644228,-151.0,0.00041109,14]
[340728820,1729734644237,-151.0,0.00041109,14]
[340728821,1729734644247,-25628.0897826,0.00041109,30]
[340728822,1729734644256,-27161.07361881,0.00041109,30]
[340728823,1729734644266,-22648.58465179,0.00041109,30]
[340728824,1729734644276,-50000.0,0.00041109,30]
[340728825,1729734644285,-34284.21539478,0.00041109,30]
[340728826,1729734644294,-26099.92119362,0.00041109,30]
[340728827,1729734644305,-391.05918243,0.00041109,30]
[340728828,1729734644315,-6406.96811911,0.00041109,30]
[340728829,1729734644338,-296.37703776,0.00041109,30]
[340728830,1729734644349,-4644.54028985,0.00041109,30]
[340728831,1729734644359,-2683.64741314,0.00041109,30]
[340728832,1729734644370,-1302.1840501,0.00041109,30]
[340728833,1729734644381,-5420.415,0.00041109,30]
[340728834,1729734644392,-4956.61538421,0.00041109,30]
[340728835,1729734644411,-3286.50983916,0.00041109,30]
[340728836,1729734644421,-443.772,0.00041109,2]
[340728837,1729734644430,-2139.20818598,0.00041109,30]
[340728838,1729734644441,-4213.64287576,0.00041109,30]
[340728839,1729734644450,-4796.32843992,0.00041109,30]
[340728845,1729734646434,-932.0,0.00041052,2]
[340728846,1729734646446,-3642.96692599,0.00041109,30]
[340728847,1729734646460,-4934.2712812,0.00041109,30]
[340728848,1729734646474,-22887.36583612,0.00041109,30]
[340728849,1729734646485,-22458.89264903,0.00041109,30]
[340728850,1729734646497,-6512.76375228,0.00041109,30]
[340728851,1729734646507,-31496.40418434,0.00041109,30]
[340728852,1729734646524,-1079.96581455,0.00041109,30]
[340728853,1729734646601,-16277.83644564,0.00041109,30]
[340728854,1729734646615,-12699.43174688,0.00041109,30]
[340728855,1729734646627,-8964.80575896,0.00041109,30]
[340728886,1729735544154,-1190.03688871,0.00015242,2]
[340728887,1729735546170,-425.89169566,0.00015242,2]
[340728888,1729735653927,-150.0,0.00015315,2]
[340728889,1729735653948,-180.65978603,0.00015342,2]
[340728890,1729735831585,-150.0,0.00015313,2]
[340728892,1729735831594,-319.34021397,0.00015342,2]
[340728893,1729735831603,-500.0,0.00015342,2]
[340728894,1729735831613,-159.02,0.00015342,2]
[340728895,1729735831622,-160.27,0.00015342,2]
[340728896,1729735831632,-162.07,0.00015342,2]
[340728897,1729735831641,-142.19874581,0.00019178,2]
[340728898,1729735831781,-11.42125419,0.00019178,2]
[340728899,1729735831791,-300.0,0.00019451,2]
[340728900,1729735831804,-201.81771099,0.00023,2]
[340728901,1729735831815,-173.03,0.00030518,2]
[340728902,1729735831826,-161.24,0.00031199,30]
[340728903,1729735831836,-2443.15138373,0.00032055,2]
[340728904,1729735831848,-450.0,0.00032055,2]
[340728905,1729735831860,-2759.4168507,0.00032055,2]
[340728906,1729735831977,-800.0,0.00032055,2]
[340728907,1729735831988,-1974.13736734,0.00032055,2]
[340728912,1729735837813,-1573.28439823,0.00032055,2]
[340728913,1729735837822,-866.0,0.000322,2]
[340728914,1729735837832,-150.99,0.00037151,2]
[340728915,1729735837841,-598.08,0.00037151,2]
[340728916,1729735837850,-338.33,0.00037151,2]
[340728917,1729735837859,-745.6,0.0003756,2]
[340728918,1729735837868,-162.92,0.00037604,2]
[340728919,1729735837878,-1000.0,0.0003778,2]
[340728920,1729735837888,-250.0,0.00037863,2]
[340728921,1729735837897,-250.0,0.00037939,120]
[340728922,1729735837907,-7078.55028266,0.00038265,2]
[340728923,1729735837919,-638.24848553,0.00038265,2]
[340728924,1729735837998,-677.06162226,0.00038265,2]
[340728925,1729735838009,-3204.43052,0.00038265,2]
[340728926,1729735838020,-2004.41056198,0.00038265,2]
[340728927,1729735838031,-944.18934277,0.00038265,2]
[340728928,1729735838042,-662.27721154,0.00038265,2]
[340728993,1729735843702,-8690.83197326,0.00038265,2]
[340728994,1729735843711,-1667.70005221,0.0003829,7]
[340729008,1729735845622,-151.72114779,0.0003829,7]
[340729009,1729735845632,-284.77,0.0003839,120]
[340729010,1729735845642,-155.39,0.00038757,2]
[340729012,1729735845651,-88.26391639,0.00038778,2]
[340729014,1729735845663,-161.73608361,0.00038778,2]
[340729016,1729735845672,-189.31381488,0.00038793,2]
[340729022,1729735845792,-259.58618512,0.00038793,2]
[340729023,1729735845801,-4243.38,0.00038821,2]
[340729024,1729735845811,-254.4,0.00039257,2]
[340729025,1729735845820,-200.45,0.00039392,2]
[340729026,1729735845829,-338.33,0.00039415,2]
[340729027,1729735845839,-231.0,0.0004,120]
[340729028,1729735845847,-225.68804981,0.0004,5]
[340729029,1729735845959,-278.535,0.0004,5]
[340729042,1729736680601,-165.83,0.00015342,2]
[340729043,1729736680622,-300.0,0.00019725,2]
[340729044,1729736680642,-420.0,0.00021484,2]
[340729045,1729736680664,-587.0,0.00023401,2]
[340729046,1729736680684,-508.0,0.00025488,2]
[340729047,1729736681653,774.94103549,0.00025488,2]
[340729048,1729736846137,-300.0,0.00019725,2]
[340729049,1729736846157,-599.95759259,0.0002,2]
[340729050,1729736876182,27806.04188522,0.00012579,2]
[340729051,1729736884146,-31917.0,0.00015,2]
[340729060,1729737031793,-228.52404071,0.0001499,2]
[340729061,1729737031803,-222.27827492,0.00014999,2]
[340729062,1729737031816,-271.76602956,0.00014999,2]
[340729064,1729737031825,-603.90865425,0.00014999,2]
[340729066,1729737031834,-1445.2923573,0.00015,2]
[340729068,1729737031845,-13495.05892328,0.00015,2]
[340729080,1729737031903,-420.75153955,0.00015,2]
[340729082,1729737031914,-4757.78527781,0.00015,2]
[340729083,1729737031925,-858.16390953,0.00015,2]
[340729084,1729737032011,-727.38896403,0.00015,2]
[340729085,1729737032022,-429974.55,0.00015,2]
[340729086,1729737032116,-4271.63072216,0.00015,2]
[340729089,1729737037954,-425.4,0.00015,2]
[340729090,1729737038054,-5685.12943716,0.00015,2]
[340729091,1729737038065,-539.039175,0.00015,2]
[340729092,1729737038149,-2003.36181516,0.00015,2]
[340729093,1729737038159,-294.35236673,0.00015,2]
[340729169,1729737042990,-815.1431738,0.00015,2]
[340729170,1729737043190,-123519.56027833,0.00015,2]
[340729189,1729737045927,-5616.45271865,0.00015,2]
[340729190,1729737238651,250.0,0.0001,2]
[340729191,1729737239811,300.0,0.00012,2]
[340729192,1729737241041,350.0,0.00014,2]
[340729193,1729737328588,1059.113305,0.00014442,2]
[340729194,1729737329446,1738.6492776,0.00014428,2]
[340729195,1729737334407,1738.64927758,0.00014465,2]
[340729196,1729737339412,1738.64927758,0.00014501,2]
[340729197,1729738025152,-150.0,0.00014587,2]
[340729198,1729738025173,-172.44066124,0.000146,2]
[340729199,1729738025196,-440.462,0.000147,2]
[340729200,1729738025216,-682.47014357,0.0001485,2]
[340729203,1729738175591,-5300.52985643,0.0001485,2]
[340729204,1729738175614,-731.64483952,0.00014888,2]
[340729205,1729738175638,-150.0,0.00014989,2]
[340729206,1729738175661,-232.23014121,0.0001499,2]
[340729207,1729738175684,-29560.41,0.0001499,2]
[340729208,1729738175709,-500.0,0.00014999,2]
[340729209,1729738175733,-500.0,0.00014999,2]
[340729210,1729738175757,-500.0,0.00014999,2]
[340729211,1729738175779,-500.0,0.00014999,2]
[340729212,1729738175802,-282.7518006,0.00014999,2]
[340729213,1729738175825,-381742.43336224,0.00015,2]
[340729214,1729738232183,-96497.79152859,0.00015,2]
[340729215,1729738232195,-775.87557787,0.00015,2]
[340729216,1729738232207,-329.14260328,0.00015,2]
[340729217,1729738232218,-300.0,0.00015,2]
[340729218,1729738232393,-523920.17189469,0.00015,2]
[340729219,1729738232402,-3724.01213553,0.00015242,2]
[340729220,1729738232411,-157.75,0.00015342,2]
[340729221,1729738232421,-159.85,0.00015342,2]
[340729222,1729738232431,-171.13917395,0.000159,2]
[340729223,1729738232440,-18973.26,0.000159,2]
[340729224,1729738232449,-400.0,0.00016,2]
[340729225,1729738232459,-440.5,0.00016,2]
[340729226,1729738232468,-450.0,0.00018,2]
[340729227,1729738232478,-7250.95274656,0.0002,2]
[340729228,1729738232488,-3724.01213548,0.00021088,2]
[340729229,1729738232497,-1000.0,0.00021917,2]
[340729230,1729738232507,-10000.0,0.00022,2]
[340729231,1729738232516,-10000.0,0.00022,2]
[340729232,1729738232525,-10000.0,0.00022,2]
[340729233,1729738232535,-10000.0,0.00022,2]
[340729234,1729738232548,-10000.0,0.00022,2]
[340729235,1729738232558,-9900.0,0.00022,2]
[340729236,1729738232567,-171.13917395,0.00022971,2]
[340729237,1729738232576,-1000.0,0.00023287,2]
[340729238,1729738232586,-1000.0,0.00024657,2]
[340729240,1729738232596,-160.56,0.0002549,2]
[340729242,1729738232606,-1000.0,0.00026027,15]
[340729244,1729738232616,-3724.01213548,0.00026933,2]
[340729245,1729738232627,-1000.0,0.00027397,15]
[340729246,1729738232637,-1000.0,0.00028767,15]
[340729247,1729738232646,-194.91816627,0.0003,2]
[340729248,1729738232655,-171.13917395,0.00030043,2]
[340729249,1729738232665,-1000.0,0.00030136,15]
[340729250,1729738232674,-1000.0,0.00031485,2]
[340729251,1729738232684,-160.08,0.00031503,2]
[340729252,1729738232693,-150.0,0.00031503,2]
[340729253,1729738232703,-1000.0,0.00031506,15]
[340729254,1729738232713,-781.0,0.000316,2]
[340729255,1729738232723,-250.0,0.00031671,2]
[340729256,1729738232732,-349.05,0.00031977,2]
[340729257,1729738232742,-250.0,0.00032351,2]
[340729258,1729738232752,-250.0,0.00032395,2]
[340729259,1729738232761,-155.39,0.00032496,2]
[340729260,1729738232771,-162.49,0.00032623,120]
[340729261,1729738232780,-3724.01213548,0.00032779,15]
[340729262,1729738232791,-1000.0,0.00032876,15]
[340729263,1729738232801,-224.45,0.0003318,2]
[340729264,1729738232810,-23900.0,0.00033707,2]
[340729265,1729738232820,-349.05,0.00034241,2]
[340729266,1729738232829,-1000.0,0.00034246,15]
[340729267,1729738232838,-471.88,0.00034496,2]
[340729268,1729738232847,-471.88,0.00034505,2]
[340729269,1729738232856,-471.88,0.00034515,2]
[340729270,1729738232865,-471.88,0.00034524,2]
[340729271,1729738232874,-471.88,0.00034533,2]
[340729272,1729738232884,-471.88,0.00034542,2]
[340729273,1729738232894,-150.0,0.00034548,10]
[340729274,1729738232903,-182.65,0.00034548,120]
[340729275,1729738232912,-471.88,0.00034551,2]
[340729276,1729738232922,-471.88,0.0003456,2]
[340729277,1729738232931,-471.88,0.00034569,2]
[340729278,1729738232941,-471.88,0.00034578,2]
[340729279,1729738232950,-471.88,0.00034587,2]
[340729280,1729738232960,-471.88,0.00034596,2]
[340729281,1729738232969,-471.88,0.00034605,2]
[340729282,1729738232978,-471.88,0.00034614,2]
[340729283,1729738232987,-471.88,0.00034623,2]
[340729284,1729738232997,-471.88,0.00034632,2]
[340729285,1729738233006,-471.88,0.00034642,2]
[340729286,1729738233015,-471.88,0.00034651,2]
[340729287,1729738233025,-471.88,0.0003466,2]
[340729288,1729738233035,-471.88,0.00034669,2]
[340729289,1729738233045,-159.01,0.00034912,120]
[340729290,1729738233056,-604.27755424,0.00035,90]
[340729291,1729738233067,-1000.0,0.0003542,2]
[340729292,1729738233077,-204.7898954,0.00035616,120]
[340729293,1729738233087,-349.05,0.00036505,2]
[340729294,1729738233098,-171.13917395,0.00037114,2]
[340729295,1729738233108,-929.68272506,0.000379,2]
[340729296,1729738233118,-440.462,0.00038525,52]
[340729297,1729738233130,-3724.01213548,0.00038625,15]
[340729298,1729738233139,-349.05,0.00038769,2]
[340729299,1729738233149,-1844.61391261,0.0003888,90]
[340729300,1729738233160,-153.81388019,0.00039,120]
[340729301,1729738233170,-1000.0,0.00039356,2]
[340729302,1729738233179,-150.82,0.00039392,2]
[340729303,1729738233190,-150.82,0.00039407,2]
[340729304,1729738233199,-150.82,0.00039422,2]
[340729305,1729738233208,-150.82,0.00039437,2]
[340729306,1729738233218,-150.82,0.00039453,2]
[340729307,1729738233227,-150.82,0.00039468,2]
[340729308,1729738233237,-150.82,0.00039483,2]
[340729309,1729738233246,-150.82,0.00039498,2]
[340729310,1729738233256,-150.82,0.00039513,2]
[340729311,1729738233265,-150.82,0.00039528,2]
[340729312,1729738233275,-150.82,0.00039543,2]
[340729313,1729738233285,-150.82,0.00039559,2]
[340729314,1729738233295,-150.82,0.00039574,2]
[340729315,1729738233304,-150.82,0.00039589,2]
[340729316,1729738233314,-1689.80917683,0.0004,5]
[340729317,1729738233324,-293.30319025,0.0004,120]
[340729318,1729738233333,-334.81562084,0.0004,30]
[340729319,1729738233343,-314.36952925,0.0004,120]
[340729320,1729738233352,-330.5209656,0.0004,120]
[340729321,1729738233362,-8505.51676404,0.0004,30]
[340729322,1729738233372,-2000.0,0.0004,7]
[340729323,1729738233382,-200.0,0.0004,7]
[340729324,1729738233391,-314.41909394,0.00040172,12]
[340729325,1729738233401,-167.02,0.00040205,2]
[340729326,1729738233410,-2000.0,0.000404,7]
[340729327,1729738233420,-200.0,0.000404,7]
[340729328,1729738233429,-75802.65551098,0.00040504,7]
[340729329,1729738233442,-460.43123519,0.00040504,7]
[340729330,1729738233454,-1677.4496528,0.00040504,7]
[340729331,1729738233465,-3168.51029453,0.00040504,7]
[340729332,1729738233508,-1530.12866605,0.00040504,7]
[340729333,1729738233520,-1466.14126311,0.00040504,7]
[340729334,1729738233531,-4900.46699005,0.00040504,7]
[340729335,1729738238311,-1000.0,0.00040504,7]
[340729336,1729738238320,-32119.6434447,0.00040504,7]
[340729337,1729738238331,-47920.07294259,0.00040504,7]
[340729338,1729738238341,-18026.47,0.00040504,7]
[340729339,1729738238351,-278941.56,0.0004069,7]
[340729340,1729738238360,-2000.0,0.00040804,7]
[340729341,1729738238370,-200.0,0.00040804,7]
[340729342,1729738238380,-455.7029,0.00040903,2]
[340729343,1729738238390,-2150.31781175,0.00041,120]
[340729344,1729738238401,-3455.8717,0.00041007,2]
[340729345,1729738238411,-10559.5176,0.00041007,2]
[340729346,1729738238420,-349.05,0.00041032,2]
[340729347,1729738238430,-150.51960774,0.00041108,2]
[340729348,1729738238440,-11931.00813012,0.00041108,2]
[340729349,1729738238449,-151.0,0.00041172,14]
[340729350,1729738238459,-188.804213,0.00041172,14]
[340729351,1729738238468,-254.233,0.00041172,14]
[340729352,1729738238479,-23455.37867235,0.00041172,30]
[340729353,1729738238488,-56768.15299748,0.00041172,30]
[340729354,1729738238498,-8670.46334485,0.00041172,30]
[340729355,1729738238508,-6886.88289733,0.00041172,30]
[340729356,1729738238518,-217868.33684993,0.00041172,30]
[340729357,1729738238529,-154.0,0.00041172,120]
[340729358,1729738238539,-628.3,0.00041172,30]
[340729359,1729738238554,-220161.19565662,0.00041172,30]
[340729360,1729738238565,-175.16875396,0.00041172,60]
[340729361,1729738238574,-197.0,0.00041172,120]
[340729362,1729738238584,-2028.05514818,0.00041172,2]
[340729363,1729738238594,-165.34521358,0.00041172,7]
[340729364,1729738238603,-699.12569399,0.00041172,120]
[340729365,1729738238613,-2000.0,0.00041212,7]
[340729366,1729738238623,-8144.6848509,0.00041296,2]
[340729368,1729738238634,-74515.8801862,0.00041296,2]
[340729369,1729738238644,-1354.0,0.000413,3]
[340729370,1729738238654,-6028.5719818,0.00041324,2]
[340729371,1729738238663,-13798.2531171,0.00041324,2]
[340729372,1729738238673,-2507.41573061,0.00041635,7]
[340729373,1729738238684,-905.36426939,0.00041635,7]
[340729374,1729738238694,-1732.78,0.000417,7]
[340729375,1729738238703,-1732.78,0.000417,7]
[340729376,1729738238713,-1732.78,0.000417,7]
[340729377,1729738238723,-250.0,0.00042,30]
[340729378,1729738238732,-4081.95140518,0.00042,30]
[340729379,1729738238742,-4843.06,0.000423,7]
[340729380,1729738238751,-5004.47,0.000423,7]
[340729381,1729738238760,-5004.47,0.000423,7]
[340729382,1729738238770,-3260.07480948,0.000423,7]
[340729383,1729738238782,-1051.74850456,0.000423,7]
[340729384,1729738238794,-279.36,0.000423,7]
[340729385,1729738238929,-413.28668596,0.000423,7]